Workbook

Sheet Historic Data
C1: Murraylink: Access Arrangement
C2: Operating Expenditure Forecast
A3: Sheet: | B3: Historic Data | F3: As required in the RIN, nominal dollars for FY 2020 and FY 2021 to be converted into real FY 2023 dollars
B4: Consistent with ARIN | C4: FY21 | F4: FY 21 (rather than FY 20) is to be chosen as the base year. This is because FY 21 is more repsentative of future expenditures compared for FY 20.
F5: Notable change from FY 20 to FY 21:
B6: Opex costs | C6: $'000 | F6: * insurance cost has increased
B7: NETWORK OPERATIONS & MAINTENANCE | F7: * Commercial management fee - reduction revenue from other asset - Murraylink contributing to a higher proportion of revenue - likely to be ongoing
B8: Operating & Maintenance Costs | C8: 2677.577051
B9: Commercial Management Fees | C9: 598.103836
B10: 0
B11: OTHER COSTS
B12: Insurance | C12: 473.219076
B13: Connection fees | C13: 283.853878
B14: Staff Costs | C14: 0
B15: Tax on Property & Capital | C15: 79.415512
B16: Travel Costs | C16: 0
B17: Accounting/Audit Fees | C17: 11.626219
B18: Legal Fees | C18: 0
B19: Other | C19: 153.5673664
B20: 0
B21: Depreciation | C21: 5145.381621
B22: Impairment | C22: 0
B23: Amortisation | C23: 0
B24: Total | C24: =SUM(C7:C23) -> 9422.744559
B26: Regulatoy Account Total | C26: 9422.744559
B27: Difference | C27: =C24-C26 -> 0
B29: Categorised for Forecast Purposes (FY 21) | C29: Amount ($'000) | D29: Perecentage
B32: =B8 -> Operating & Maintenance Costs | C32: =INDEX($C$7:$C$23,MATCH($B32,$B$7:$B$23,0),0) -> 2677.577051 | D32: =C32/$C$43 -> 0.6259878083
B33: =B9 -> Commercial Management Fees | C33: =INDEX($C$7:$C$23,MATCH($B33,$B$7:$B$23,0),0) -> 598.103836 | D33: =C33/$C$43 -> 0.1398300412
B34: =B12 -> Insurance | C34: =INDEX($C$7:$C$23,MATCH($B34,$B$7:$B$23,0),0) -> 473.219076 | D34: 0.1106333699
B35: =B13 -> Connection fees | C35: =INDEX($C$7:$C$23,MATCH($B35,$B$7:$B$23,0),0) -> 283.853878 | D35: 0.06636188747
B36: Staff Costs | C36: =INDEX($C$7:$C$23,MATCH($B36,$B$7:$B$23,0),0) -> 0 | D36: 0
B37: Tax on Property & Capital | C37: =INDEX($C$7:$C$23,MATCH($B37,$B$7:$B$23,0),0) -> 79.415512 | D37: 0.01856646563
B38: Travel Costs | C38: =INDEX($C$7:$C$23,MATCH($B38,$B$7:$B$23,0),0) -> 0 | D38: 0
B39: Accounting/Audit Fees | C39: =INDEX($C$7:$C$23,MATCH($B39,$B$7:$B$23,0),0) -> 11.626219 | D39: 0.002718081016
B40: Legal Fees | C40: =INDEX($C$7:$C$23,MATCH($B40,$B$7:$B$23,0),0) -> 0 | D40: 0
B41: Other | C41: =INDEX($C$7:$C$23,MATCH($B41,$B$7:$B$23,0),0) -> 153.5673664 | D41: 0.03590234652
B43: Total in forecast | C43: =SUM(C32:C41) -> 4277.362938 | D43: =SUM(D32:D41) -> 1
B45: Debt Rasing Cost | C45: 0
B48: Total | C48: =C43-SUM(C45:C46) -> 4277.362938
B50: =B24 -> Total | C50: 4277.362938
B51: Difference | C51: =C48-C50 -> 0
B54: Nominal | C54: FY20 ($000)
B55: Operating and maintenance costs | C55: 2661.660342
B56: Management fees and expenses | C56: 532.843982
B57: Insurance | C57: 407.655336
B58: Connection fees | C58: 276.716374
B59: Tax on property | C59: 81.522045
B60: Accounting/audit fees | C60: 12.428889
B61: Legal fees | C61: 0
B62: Other costs | C62: 138.7718279
B64: Total | C64: 4111.598796

Sheet Inputs
J1: Murraylink: Access Arrangement
J2: Operating Expenditure Forecast
K4: CPI | X4: CPI data source
X5: FY 2018 to FY 2022 - based in ABS CPI
K6: FY 17/18 | L6: FY 18/19 | M6: FY 19/20 | N6: FY 20/21 | O6: FY 21/22 | P6: FY 22/23 | Q6: FY 23/24 | R6: FY 24/25 | S6: FY 25/26 | T6: FY 26/27 | U6: FY 27/28 | X6: FY 2023 - https://www.rba.gov.au/publications/smp/2021/aug/economic-outlook.html
K7: 2017-03-01 | L7: =DATE(YEAR(K7)+1,MONTH(K7),DAY(K7)) -> 2018-03-01 | M7: =DATE(YEAR(L7)+1,MONTH(L7),DAY(L7)) -> 2019-03-01 | N7: 2020-03-01 | O7: 2021-03-01 | P7: 2022-03-01 | X7: FY 2024 to FY 2028 - PTRM
K8: Actual | Q8: RBA | R8: PTRM
J9: CPI | K9: 0.02125693161 | L9: 0.01900452489 | M9: 0.01332149201 | N9: 0.02191060473 | O9: 0.01114922813 | P9: 0.05089058524 | Q9: 0.045 | R9: 0.04 | S9: 0.035 | T9: 0.03 | U9: 0.025
J11: Index | K11: =L11/(1+L9) -> 0.8918482647 | L11: =M11/(1+M9) -> 0.9087974173 | M11: =N11/(1+N9) -> 0.9209039548 | N11: =O11/(1+O9) -> 0.9410815174 | O11: =P11/(1+P9) -> 0.9515738499 | P11: 1 | Q11: =P11*(1+Q9) -> 1.045 | R11: =Q11*(1+R9) -> 1.0868 | S11: =R11*(1+S9) -> 1.124838 | T11: =S11*(1+T9) -> 1.15858314 | U11: =T11*(1+U9) -> 1.187547718
K13: 0.02125693161 | L13: 0.01900452489 | M13: 0.01332149201 | N13: 0.02191060473 | O13: 0.01114922813 | P13: 0.0225 | Q13: 0.02374961844 | R13: 0.02374961844 | S13: 0.02374961844 | T13: 0.02374961844 | U13: 0.02374961844
N14: 2020/21? | O14: 2021/22?
N15: =N6 -> FY 20/21 | O15: FY 21/22 | P15: FY 22/23 | Q15: FY 23/24 | R15: FY 24/25 | S15: FY 25/26 | T15: FY 26/27 | U15: =U6 -> FY 27/28
B16: WPI | N16: 0.01694915254 | O16: 0.009825264614 | P16: 0.003793852401 | Q16: 0.005128940984 | R16: 0.008504989918 | S16: 0.01139630337 | T16: 0.006830847002 | U16: =T16 -> 0.006830847002
B17: Source: Powerlink Transmission Determination Proposal
B18: Source: Energex Revenue Determination Proposal
J24: SOCI (Cyber) | P24: 210680.2999 | Q24: 127545.6499 | R24: 91715.29088 | S24: 90626.44748 | T24: 82875.43 | U24: 82875.43
J25: Insurance | N25: 473219.076 | O25: =N25+(($Q25-$N25)/3) -> 563384.6843 | P25: =O25+(($Q25-$N25)/3) -> 653550.2927 | Q25: 743715.901 | R25: 786068.8782 | S25: 829155.0394 | T25: 833779.274 | U25: 833344.3999

Sheet Calculation
B1: Murraylink: Access Arrangement
B2: Operating Expenditure Forecast
C3: $'000 | D3: FY21 | E3: FY22 | F3: FY23 | G3: FY24 | H3: FY25 | I3: FY26 | J3: FY27 | K3: FY28
B5: Calculating Base Opex
B6: Base Year Operating expenditure in RIN
B7: Operating Expenditure Financial Year 2021 | C7: Nominal | D7: =TotalOpex -> 4277.362938
B9: Removal of reported items subject to different calculation
B10: Insurance | C10: Nominal | D10: =INDEX('Historic Data'!$C$32:$C$41,MATCH(B10,'Historic Data'!$B$32:$B$41,0),0) -> 473.219076
B11: Subtotal | C11: Nominal | D11: =D7-SUM(D10:D10) -> 3804.143862
B13: Separation into categories relevant for forecasting
B15: Controllable Costs | C15: Nominal | D15: =D20-D18 -> 3520.289984
B17: ='Historic Data'!B35 -> Connection fees | C17: Nominal | D17: =IFERROR(INDEX('Historic Data'!$C$32:$C$46,MATCH($B17,'Historic Data'!$B$32:$B$41,0),0),0) -> 283.853878
B18: Uncontrollable Costs | C18: Nominal | D18: =SUM(D17:D17) -> 283.853878
B20: Total | C20: =C18 -> Nominal | D20: =D11 -> 3804.143862
B22: Adjustment for PTRM $
B23: =B15 -> Controllable Costs | C23: Nominal | D23: =D15 -> 3520.289984
B24: =B18 -> Uncontrollable Costs | C24: Nominal | D24: =D18 -> 283.853878
B26: Total | C26: =C24 -> Nominal | D26: =SUM(D23:D24) -> 3804.143862
B28: Adjustment Factor
B29: FY22
B30: =B23 -> Controllable Costs | C30: CPI Mar 2022 | E30: =Inputs!O9 -> 0.01114922813
B31: =B24 -> Uncontrollable Costs | C31: CPI Mar 2022 | E31: =E30 -> 0.01114922813
B33: =B23 -> Controllable Costs | C33: $2022 | E33: =D23*(1+E30) -> 3559.538501
B34: =B24 -> Uncontrollable Costs | C34: $2022 | E34: =D24*(1+E31) -> 287.0186296
B36: Total | C36: =C34 -> $2022 | E36: =SUM(E33:E34) -> 3846.55713
B38: FY23
B39: =B30 -> Controllable Costs | C39: CPI Forecast | F39: =Inputs!P9 -> 0.05089058524
B40: =B31 -> Uncontrollable Costs | C40: CPI Forecast | F40: =F39 -> 0.05089058524
B42: =B33 -> Controllable Costs | C42: $2023 | G42: =E33*(1+F39) -> 3740.685498
B43: =B34 -> Uncontrollable Costs | C43: $2023 | G43: =E34*(1+F40) -> 301.6251757
B45: Total | C45: =C43 -> $2023 | G45: =SUM(G42:G43) -> 4042.310674
B47: Forecast trend
B48: Forecast WPI
B50: =B33 -> Controllable Costs | C50: $2023 | D50: =G42 -> 3740.685498 | E50: =D50 -> 3740.685498 | F50: =E50 -> 3740.685498 | G50: 3740.685498 | H50: 3740.685498 | I50: 3740.685498 | J50: 3740.685498 | K50: 3740.685498
B51: =B34 -> Uncontrollable Costs | C51: $2023 | D51: =G43 -> 301.6251757 | E51: =D51 -> 301.6251757 | F51: =E51 -> 301.6251757 | G51: 301.6251757 | H51: 301.6251757 | I51: 301.6251757 | J51: 301.6251757 | K51: 301.6251757
B53: Total | C53: $2023 | D53: =SUM(D50:D52) -> 4042.310674 | E53: 4042.310674 | F53: 4042.310674 | G53: 4042.310674 | H53: 4042.310674 | I53: 4042.310674 | J53: 4042.310674 | K53: 4042.310674
B56: Step Changes
B57: SOCI (Cyber) | C57: $2023 | D57: 0 | E57: 0 | F57: =Inputs!P24/1000 -> 210.6802999 | G57: =Inputs!Q24/1000 -> 127.5456499 | H57: =Inputs!R24/1000 -> 91.71529088 | I57: =Inputs!S24/1000 -> 90.62644748 | J57: =Inputs!T24/1000 -> 82.87543 | K57: =Inputs!U24/1000 -> 82.87543
B60: =B50 -> Controllable Costs | C60: $2023 | D60: =D50+D57 -> 3740.685498 | E60: =E50+E57 -> 3740.685498 | F60: =F50+F57 -> 3951.365798 | G60: 3868.231148 | H60: 3832.400789 | I60: 3831.311946 | J60: 3823.560928 | K60: 3823.560928
B61: =B51 -> Uncontrollable Costs | C61: $2023 | D61: =D51 -> 301.6251757 | E61: =E51 -> 301.6251757 | F61: 301.6251757 | G61: 301.6251757 | H61: 301.6251757 | I61: 301.6251757 | J61: 301.6251757 | K61: 301.6251757
B64: Total | C64: $2023 | D64: =SUM(D60:D61) -> 4042.310674 | E64: =SUM(E60:E61) -> 4042.310674 | F64: =SUM(F60:F61) -> 4252.990974 | G64: 4169.856324 | H64: 4134.025965 | I64: 4132.937121 | J64: 4125.186104 | K64: 4125.186104
B66: Separate Line item forecast | E66: Display purposes only
B67: =Inputs!J25 -> Insurance | C67: $2023 | D67: =D10*(1+$E$30)*(1+$F$39) -> 502.8459993 | E67: =Inputs!O25/1000 -> 563.3846843 | F67: =Inputs!P25/1000 -> 653.5502927 | G67: =Inputs!Q25/1000 -> 743.715901 | H67: =Inputs!R25/1000 -> 786.0688782 | I67: =Inputs!S25/1000 -> 829.1550394 | J67: =Inputs!T25/1000 -> 833.779274 | K67: =Inputs!U25/1000 -> 833.3443999
B69: =B60 -> Controllable Costs | C69: $2023 | D69: =D60+D67 -> 4243.531497 | E69: =E60+E67 -> 4304.070182 | F69: 4604.916091 | G69: 4611.947049 | H69: 4618.469667 | I69: 4660.466985 | J69: 4657.340202 | K69: 4656.905328
B70: =B61 -> Uncontrollable Costs | C70: $2023 | D70: =D61 -> 301.6251757 | E70: 301.6251757 | F70: 301.6251757 | G70: 301.6251757 | H70: 301.6251757 | I70: 301.6251757 | J70: 301.6251757 | K70: 301.6251757
B73: Total | C73: $2023 | D73: =SUM(D69:D70) -> 4545.156673 | E73: =SUM(E69:E70) -> 4605.695358 | F73: =SUM(F69:F70) -> 4906.541266 | G73: =SUM(G69:G70) -> 4913.572225 | H73: 4920.094843 | I73: 4962.092161 | J73: 4958.965378 | K73: 4958.530504
B75: Total
B76: =B69 -> Controllable Costs | C76: $2023 | D76: =D69 -> 4243.531497 | E76: =E69 -> 4304.070182 | F76: 4604.916091 | G76: 4611.947049 | H76: 4618.469667 | I76: 4660.466985 | J76: 4657.340202 | K76: 4656.905328
B77: =B70 -> Uncontrollable Costs | C77: $2023 | D77: =D70 -> 301.6251757 | E77: 301.6251757 | F77: 301.6251757 | G77: =G70 -> 301.6251757 | H77: 301.6251757 | I77: 301.6251757 | J77: 301.6251757 | K77: 301.6251757
B80: Total | C80: $2023 | D80: =SUM(D76:D77) -> 4545.156673 | E80: =SUM(E76:E77) -> 4605.695358 | F80: =SUM(F76:F77) -> 4906.541266 | G80: =SUM(G76:G79) -> 4913.572225 | H80: 4920.094843 | I80: 4962.092161 | J80: 4958.965378 | K80: 4958.530504

Sheet Output
A1: Murraylink: Access Arrangement
A2: Operating Expenditure Forecast
D4: FY21 | E4: FY22 | F4: FY23 | G4: FY24 | H4: FY25 | I4: FY26 | J4: FY27 | K4: FY28
A6: PTRM input
E8: Cost ('$000) | G8: =G4 -> FY24 | H8: =H4 -> FY25 | I8: FY26 | J8: FY27 | K8: FY28 | O8: Total
E9: =Calculation!B76 -> Controllable Costs | G9: =Calculation!G76 -> 4611.947049 | H9: =Calculation!H76 -> 4618.469667 | I9: =Calculation!I76 -> 4660.466985 | J9: =Calculation!J76 -> 4657.340202 | K9: =Calculation!K76 -> 4656.905328 | O9: =SUM(G9:K9) -> 23205.12923
E10: =Calculation!B77 -> Uncontrollable Costs | G10: =Calculation!G77 -> 301.6251757 | H10: =Calculation!H77 -> 301.6251757 | I10: =Calculation!I77 -> 301.6251757 | J10: =Calculation!J77 -> 301.6251757 | K10: =Calculation!K77 -> 301.6251757 | O10: =SUM(G10:K10) -> 1508.125878
E11: =Calculation!B78 -> 0 | G11: =Calculation!G78/1000000 -> 0 | H11: =Calculation!H78/1000000 -> 0 | I11: =Calculation!I78/1000000 -> 0 | J11: =Calculation!J78/1000000 -> 0 | K11: =Calculation!K78/1000000 -> 0 | O11: =SUM(G11:K11) -> 0
O12: =SUM(O9:O11) -> 24713.25511
A13: Graphs
A14: By cost type
J16: =E9 -> Controllable Costs | K16: =K9 -> 4656.905328
J17: =E10 -> Uncontrollable Costs | K17: =K10 -> 301.6251757
A20: RIN outputs (opex summary) | C20: ($) | F20: =D4 -> FY21 | G20: FY22 | H20: FY23 | I20: FY24 | J20: FY25 | K20: FY26 | L20: FY27 | M20: FY28
A25: Base Opex | F25: =Calculation!D20*(1+Inputs!$O$9)*(1+Inputs!$P$9)*1000 -> 4042310.674 | G25: =Calculation!$E$64*1000 -> 4042310.674 | H25: =SUM(Calculation!F50:F51)*1000 -> 4042310.674 | I25: =SUM(Calculation!G50:G51)*1000 -> 4042310.674 | J25: =SUM(Calculation!H50:H51)*1000 -> 4042310.674 | K25: =SUM(Calculation!I50:I51)*1000 -> 4042310.674 | L25: =SUM(Calculation!J50:J51)*1000 -> 4042310.674 | M25: =SUM(Calculation!K50:K51)*1000 -> 4042310.674
A26: Increment from base year to final year | H26: 0 | I26: 0 | J26: 0 | K26: 0 | L26: 0 | M26: 0
A27: Price Growth | I27: =I33-I30-I25 -> 871134.0053 | J27: 877692.4538 | K27: 919690.8604 | L27: 916571.8286 | M27: 916136.9545
A28: Output growth | I28: 0 | J28: 0 | K28: 0 | L28: 0 | M28: 0
A29: Productivity growth | I29: 0 | J29: 0 | K29: 0 | L29: 0 | M29: 0
A30: Step Change | I30: =Calculation!G57 -> 127.5456499 | J30: =Calculation!H57 -> 91.71529088 | K30: =Calculation!I57 -> 90.62644748 | L30: =Calculation!J57 -> 82.87543 | M30: =Calculation!K57 -> 82.87543
A31: Category specific | F31: 0 | G31: 0 | H31: 0 | I31: 0 | J31: 0 | K31: 0 | L31: 0 | M31: 0
A33: Total | F33: =Calculation!D80*1000 -> 4545156.673 | G33: =Calculation!E80*1000 -> 4605695.358 | H33: =Calculation!F80*1000 -> 4906541.266 | I33: =Calculation!G80*1000 -> 4913572.225 | J33: =Calculation!H80*1000 -> 4920094.843 | K33: =Calculation!I80*1000 -> 4962092.161 | L33: =Calculation!J80*1000 -> 4958965.378 | M33: =Calculation!K80*1000 -> 4958530.504
A35: Destination: Workbool 1 Table 2.16.1
A39: EBSS Table ($'m) | D39: =D4 -> FY21 | E39: =E4 -> FY22 | F39: FY23 | G39: FY24 | H39: FY25 | I39: FY26 | J39: FY27 | K39: FY28
A41: =Calculation!B76 -> Controllable Costs | C41: $FY23 | D41: =(Calculation!D76)/1000 -> 4.243531497 | E41: =(Calculation!E76)/1000 -> 4.304070182 | F41: =(Calculation!F76)/1000 -> 4.604916091 | G41: =(Calculation!G76)/1000 -> 4.611947049 | H41: =(Calculation!H76)/1000 -> 4.618469667 | I41: =(Calculation!I76)/1000 -> 4.660466985 | J41: =(Calculation!J76)/1000 -> 4.657340202 | K41: =(Calculation!K76)/1000 -> 4.656905328
A42: =Calculation!B77 -> Uncontrollable Costs | C42: $FY23 | D42: =(Calculation!D77)/1000 -> 0.3016251757 | E42: =(Calculation!E77)/1000 -> 0.3016251757 | F42: =(Calculation!F77)/1000 -> 0.3016251757 | G42: =(Calculation!G77)/1000 -> 0.3016251757 | H42: =(Calculation!H77)/1000 -> 0.3016251757 | I42: =(Calculation!I77)/1000 -> 0.3016251757 | J42: =(Calculation!J77)/1000 -> 0.3016251757 | K42: =(Calculation!K77)/1000 -> 0.3016251757
A43: Total | C43: $FY23 | D43: =SUM(D41:D42) -> 4.545156673 | E43: =SUM(E41:E42) -> 4.605695358 | F43: 4.906541266 | G43: 4.913572225 | H43: 4.920094843 | I43: 4.962092161 | J43: 4.958965378 | K43: 4.958530504
A45: Destination: Workbool 3 (EBSS) Table 7.5.1.2
A48: Commercial Services Fee
A50: Commercial Services Fee | C50: =C41 -> $FY23 | D50: ='Historic Data'!C9*(1+Calculation!E30)*(1+Calculation!F39)/1000 -> 0.6355494449 | E50: =D50 -> 0.6355494449 | F50: =E50 -> 0.6355494449 | G50: 0.6355494449 | H50: 0.6355494449 | I50: 0.6355494449 | J50: 0.6355494449 | K50: 0.6355494449
A54: RIN output (non-network)
A56: Insurance | C56: $FY23 | D56: =VLOOKUP($A56,'Historic Data'!$B$32:$D$41,3,FALSE)*D$63 -> 502.8459993 | E56: =VLOOKUP($A56,'Historic Data'!$B$32:$D$41,3,FALSE)*E$63 -> 509.543598 | F56: =VLOOKUP($A56,'Historic Data'!$B$32:$D$41,3,FALSE)*F$63 -> 542.8271947 | G56: =VLOOKUP($A56,'Historic Data'!$B$32:$D$41,3,FALSE)*G$63 -> 543.6050533 | H56: =VLOOKUP($A56,'Historic Data'!$B$32:$D$41,3,FALSE)*H$63 -> 544.3266725 | I56: =VLOOKUP($A56,'Historic Data'!$B$32:$D$41,3,FALSE)*I$63 -> 548.9729773 | J56: =VLOOKUP($A56,'Historic Data'!$B$32:$D$41,3,FALSE)*J$63 -> 548.6270508 | K56: =VLOOKUP($A56,'Historic Data'!$B$32:$D$41,3,FALSE)*K$63 -> 548.5789392
A57: Connection fees | C57: $FY23 | D57: =VLOOKUP($A57,'Historic Data'!$B$32:$D$41,3,FALSE)*D$63 -> 301.6251757 | E57: =VLOOKUP($A57,'Historic Data'!$B$32:$D$41,3,FALSE)*E$63 -> 305.6426371 | F57: =VLOOKUP($A57,'Historic Data'!$B$32:$D$41,3,FALSE)*F$63 -> 325.6073394 | G57: =VLOOKUP($A57,'Historic Data'!$B$32:$D$41,3,FALSE)*G$63 -> 326.0739271 | H57: =VLOOKUP($A57,'Historic Data'!$B$32:$D$41,3,FALSE)*H$63 -> 326.5067803 | I57: =VLOOKUP($A57,'Historic Data'!$B$32:$D$41,3,FALSE)*I$63 -> 329.2938016 | J57: =VLOOKUP($A57,'Historic Data'!$B$32:$D$41,3,FALSE)*J$63 -> 329.0863024 | K57: =VLOOKUP($A57,'Historic Data'!$B$32:$D$41,3,FALSE)*K$63 -> 329.0574433
A58: Tax on Property & Capital | C58: $FY23 | D58: =VLOOKUP($A58,'Historic Data'!$B$32:$D$41,3,FALSE)*D$63 -> 84.38749517 | E58: =VLOOKUP($A58,'Historic Data'!$B$32:$D$41,3,FALSE)*E$63 -> 85.51148459 | F58: =VLOOKUP($A58,'Historic Data'!$B$32:$D$41,3,FALSE)*F$63 -> 91.0971298 | G58: =VLOOKUP($A58,'Historic Data'!$B$32:$D$41,3,FALSE)*G$63 -> 91.22766985 | H58: =VLOOKUP($A58,'Historic Data'!$B$32:$D$41,3,FALSE)*H$63 -> 91.34877181 | I58: =VLOOKUP($A58,'Historic Data'!$B$32:$D$41,3,FALSE)*I$63 -> 92.12851357 | J58: =VLOOKUP($A58,'Historic Data'!$B$32:$D$41,3,FALSE)*J$63 -> 92.07046027 | K58: =VLOOKUP($A58,'Historic Data'!$B$32:$D$41,3,FALSE)*K$63 -> 92.06238619
A59: Accounting/Audit Fees | C59: $FY23 | D59: =VLOOKUP($A59,'Historic Data'!$B$32:$D$41,3,FALSE)*D$63 -> 12.35410407 | E59: =VLOOKUP($A59,'Historic Data'!$B$32:$D$41,3,FALSE)*E$63 -> 12.51865312 | F59: =VLOOKUP($A59,'Historic Data'!$B$32:$D$41,3,FALSE)*F$63 -> 13.33637667 | G59: =VLOOKUP($A59,'Historic Data'!$B$32:$D$41,3,FALSE)*G$63 -> 13.35548738 | H59: =VLOOKUP($A59,'Historic Data'!$B$32:$D$41,3,FALSE)*H$63 -> 13.37321639 | I59: =VLOOKUP($A59,'Historic Data'!$B$32:$D$41,3,FALSE)*I$63 -> 13.4873685 | J59: =VLOOKUP($A59,'Historic Data'!$B$32:$D$41,3,FALSE)*J$63 -> 13.47886965 | K59: =VLOOKUP($A59,'Historic Data'!$B$32:$D$41,3,FALSE)*K$63 -> 13.47768763
A60: Legal Fees | C60: $FY23 | D60: =VLOOKUP($A60,'Historic Data'!$B$32:$D$41,3,FALSE)*D$63 -> 0 | E60: =VLOOKUP($A60,'Historic Data'!$B$32:$D$41,3,FALSE)*E$63 -> 0 | F60: =VLOOKUP($A60,'Historic Data'!$B$32:$D$41,3,FALSE)*F$63 -> 0 | G60: =VLOOKUP($A60,'Historic Data'!$B$32:$D$41,3,FALSE)*G$63 -> 0 | H60: =VLOOKUP($A60,'Historic Data'!$B$32:$D$41,3,FALSE)*H$63 -> 0 | I60: =VLOOKUP($A60,'Historic Data'!$B$32:$D$41,3,FALSE)*I$63 -> 0 | J60: =VLOOKUP($A60,'Historic Data'!$B$32:$D$41,3,FALSE)*J$63 -> 0 | K60: =VLOOKUP($A60,'Historic Data'!$B$32:$D$41,3,FALSE)*K$63 -> 0
A61: Other | C61: $FY23 | D61: =VLOOKUP($A61,'Historic Data'!$B$32:$D$41,3,FALSE)*D$63 -> 163.1817899 | E61: =VLOOKUP($A61,'Historic Data'!$B$32:$D$41,3,FALSE)*E$63 -> 165.3552707 | F61: =VLOOKUP($A61,'Historic Data'!$B$32:$D$41,3,FALSE)*F$63 -> 176.1563448 | G61: =VLOOKUP($A61,'Historic Data'!$B$32:$D$41,3,FALSE)*G$63 -> 176.4087727 | H61: =VLOOKUP($A61,'Historic Data'!$B$32:$D$41,3,FALSE)*H$63 -> 176.64295 | I61: =VLOOKUP($A61,'Historic Data'!$B$32:$D$41,3,FALSE)*I$63 -> 178.1507522 | J61: =VLOOKUP($A61,'Historic Data'!$B$32:$D$41,3,FALSE)*J$63 -> 178.0384934 | K61: =VLOOKUP($A61,'Historic Data'!$B$32:$D$41,3,FALSE)*K$63 -> 178.0228804
A62: Total misc ($'000) | C62: $FY23 | D62: =SUM(D56:D61) -> 1064.394564 | E62: =SUM(E56:E61) -> 1078.571644 | F62: 1149.024385 | G62: 1150.67091 | H62: 1152.198391 | I62: 1162.033413 | J62: 1161.301176 | K62: 1161.199337
A63: Total opex ($'000) | C63: $FY23 | D63: =Calculation!D80 -> 4545.156673 | E63: =Calculation!E80 -> 4605.695358 | F63: =Calculation!F80 -> 4906.541266 | G63: =Calculation!G80 -> 4913.572225 | H63: =Calculation!H80 -> 4920.094843 | I63: =Calculation!I80 -> 4962.092161 | J63: =Calculation!J80 -> 4958.965378 | K63: =Calculation!K80 -> 4958.530504
A67: Forecast Opex
A70: =Inputs!J25&" (FY23 000)" -> Insurance (FY23 000) | B70: FY 24 | C70: FY 25 | D70: FY 26 | E70: FY 27 | F70: FY 28
A71: Base year (FY 2021) | B71: =Calculation!$D$67 -> 502.8459993 | C71: =Calculation!$D$67 -> 502.8459993 | D71: =Calculation!$D$67 -> 502.8459993 | E71: =Calculation!$D$67 -> 502.8459993 | F71: =Calculation!$D$67 -> 502.8459993
A72: Forecast | B72: =Calculation!G67 -> 743.715901 | C72: =Calculation!H67 -> 786.0688782 | D72: =Calculation!I67 -> 829.1550394 | E72: =Calculation!J67 -> 833.779274 | F72: =Calculation!K67 -> 833.3443999
A73: Incremental Costs | B73: =B72-B71 -> 240.8699017 | C73: =C72-C71 -> 283.2228789 | D73: 326.3090401 | E73: 330.9332747 | F73: 330.4984006
A75: =Inputs!J26&" (FY23 000)" -> (FY23 000) | B75: =B70 -> FY 24 | C75: =C70 -> FY 25 | D75: FY 26 | E75: FY 27 | F75: FY 28
A76: =A71 -> Base year (FY 2021) | B76: =Calculation!#REF! ->  | C76: =Calculation!#REF! ->  | D76: =Calculation!#REF! ->  | E76: =Calculation!#REF! ->  | F76: =Calculation!#REF! -> 
A77: =A72 -> Forecast | B77: =Calculation!#REF! ->  | C77: =Calculation!#REF! ->  | D77: =Calculation!#REF! ->  | E77: =Calculation!#REF! ->  | F77: =Calculation!#REF! -> 
A78: Incremental Costs | B78: =B77-B76 ->  | C78: =C77-C76 ->  | D78: =D77-D76 ->  | E78: =E77-E76 ->  | F78: =F77-F76 -> 
A80: =Calculation!B57&" ($FY23 000)" -> SOCI (Cyber) ($FY23 000) | B80: 2023-24 | C80: 2024-25 | D80: 2025-26 | E80: 2026-27 | F80: 2027-28
A81: =A76 -> Base year (FY 2021) | B81: 0 | C81: 0 | D81: 0 | E81: 0 | F81: 0
A82: =A77 -> Forecast | B82: =Calculation!G57 -> 127.5456499 | C82: =Calculation!H57 -> 91.71529088 | D82: =Calculation!I57 -> 90.62644748 | E82: =Calculation!J57 -> 82.87543 | F82: =Calculation!K57 -> 82.87543
A83: Incremental Costs | B83: =B82-B81 -> 127.5456499 | C83: =C82-C81 -> 91.71529088 | D83: 90.62644748 | E83: 82.87543 | F83: 82.87543
A85: Incremental Costs
A88: Incremental Opex | B88: FY 24 | C88: FY 25 | D88: FY 26 | E88: FY 27 | F88: FY 28 | G88: Total
A89: =Inputs!J24 -> SOCI (Cyber) | B89: =B83 -> 127.5456499 | C89: =C83 -> 91.71529088 | D89: 90.62644748 | E89: 82.87543 | F89: 82.87543 | G89: =SUM(B89:F89) -> 475.6382483
A90: =Inputs!J25 -> Insurance | B90: =B73 -> 240.8699017 | C90: =C73 -> 283.2228789 | D90: 326.3090401 | E90: 330.9332747 | F90: 330.4984006 | G90: =SUM(B90:F90) -> 1511.833496
A91: Total | B91: =SUM(B89:B90) -> 368.4155516 | C91: 374.9381698 | D91: 416.9354876 | E91: 413.8087047 | F91: 413.3738306 | G91: 1987.471744

Sheet Graphs
A1: Murraylink: Access Arrangement
A2: Operating Expenditure Forecast
